fUST/lending_fUST_20260202
["ID","MTS","AMOUNT","RATE_DAILY","PERIOD"]
[404298532,1770046233154,-210.33500593,0.00027932,10]
[404298533,1770046233163,-500.0,0.00027932,2]
[404298534,1770046233173,-500.0,0.00027932,2]
[404298535,1770046233182,-26523.7784214,0.00027933,2]
[404298536,1770046233191,-500.0,0.00028138,2]
[404298537,1770046233275,-500.0,0.00028412,2]
[404298538,1770046233284,-383.81437061,0.0002849,2]
[404298539,1770046233295,-500.0,0.00028686,2]
[404298540,1770046233304,-500.0,0.0002896,2]
[404298541,1770046233313,-3849.105612,0.00029173,2]
[404298542,1770046233323,-500.0,0.00029234,2]
[404298543,1770046233332,-287.0,0.00029549,2]
[404298544,1770046233341,-150.0,0.00029711,2]
[404298545,1770046233350,-150.0,0.00029711,2]
[404298546,1770046233359,-151.16587703,0.00029711,2]
[404298547,1770046233369,-150.0,0.00029711,2]
[404298548,1770046233378,-500.0,0.00029711,2]
[404298549,1770046233387,-150.0,0.00029711,2]
[404298550,1770046233397,-150.0,0.00029711,2]
[404298551,1770046233406,-150.0,0.00029711,2]
[404298552,1770046233415,-151.09720304,0.00029711,2]
[404298553,1770046233425,-155.25227098,0.00029711,2]
[404298554,1770046233434,-500.0,0.00029711,2]
[404298555,1770046233444,-150.0,0.00029848,2]
[404298556,1770046233455,-150.0,0.00029848,2]
[404298557,1770046233465,-513.89261441,0.00029848,2]
[404298558,1770046233474,-150.0,0.00029848,2]
[404298559,1770046233483,-859.65693355,0.00029964,2]
[404298560,1770046233493,-276.90957225,0.00029964,2]
[404298561,1770046233502,-2972.2,0.00029964,10]
[404298562,1770046233512,-2122.9342044,0.00029974,2]
[404298563,1770046233521,-6938.2641936,0.00029974,2]
[404298564,1770046233530,-183.30751201,0.00029974,2]
[404298565,1770046233542,-506.09164999,0.00029978,2]
[404298566,1770046233552,-150.0,0.00029985,2]
[404298567,1770046233561,-250.0,0.00029985,2]
[404298568,1770046233571,-150.0,0.00029985,2]
[404298569,1770046233580,-5157.9416013,0.0002999,2]
[404298570,1770046233590,-1661.4574335,0.0002999,2]
[404298571,1770046233599,-500.0,0.00029999,2]
[404298572,1770046233608,-347.80110987,0.00029999,2]
[404298573,1770046233617,-12063.99224641,0.0003,10]
[404298574,1770046233631,-1543.16857932,0.0003,10]
[404298580,1770046238743,-250.0,0.00027488,2]
[404298581,1770046238752,-250.0,0.00027488,2]
[404298582,1770046238762,-250.0,0.00027488,2]
[404298583,1770046238772,-46.23943958,0.00027488,2]
[404298660,1770046240877,-203.76056042,0.00027488,2]
[404298663,1770046240892,-250.0,0.00027488,2]
[404298665,1770046240905,-250.0,0.00027488,2]
[404298667,1770046240917,-250.0,0.00027488,2]
[404298670,1770046240930,-250.0,0.00027488,2]
[404298672,1770046240944,-250.0,0.00027488,2]
[404298674,1770046240957,-2476.83,0.0002999,10]
[404298677,1770046240970,-4037.26039539,0.0003,10]
[404299127,1770046245831,-1958.96723498,0.00024953,2]
[404299128,1770046245859,-482.8,0.00024953,2]
[404299129,1770046245874,-2465.4700819,0.00024953,2]
[404299180,1770046247172,-92.76268312,0.00024953,2]
[404299183,1770046247184,-401.81660249,0.0002999,10]
[404299185,1770046247198,-1692.58339751,0.0002999,10]
[404299187,1770046247208,-5361.58054366,0.0003,10]
[404299191,1770046247221,-1461.61762312,0.0003,10]
[404299213,1770046907690,500.0,0.00027503,120]
[404299214,1770046984171,508.8395138,0.00013273,2]
[404299215,1770046984363,501.6567225,0.00013699,2]
[404299216,1770046984424,511.1768627,0.00013273,2]
[404299217,1770046985769,500.54048415,0.00013699,2]
[404299218,1770046986883,241.31934544,0.00013699,2]
[404299219,1770046987507,500.0,0.00013699,2]
[404299220,1770046987561,1000.0,0.00014247,2]
[404299221,1770046987627,1500.0,0.00014795,2]
[404299222,1770046987677,2000.0,0.00015342,2]
[404299223,1770046987706,500.0,0.00013699,2]
[404299224,1770046987734,505.39688843,0.00014247,2]
[404299225,1770046987762,2500.0,0.0001589,2]
[404299226,1770046988312,500.0,0.00013699,2]
[404299227,1770046988351,813.26108576,0.00014247,2]
[404299228,1770046988427,500.0,0.00013699,2]
[404299229,1770046988477,503.70707753,0.00014247,2]
[404299230,1770046988959,500.0,0.00013699,2]
[404299231,1770046989003,502.1551832,0.00014247,2]
[404299232,1770046989320,848.5205124,0.00013821,2]
[404299233,1770046989346,204.32478742,0.00013821,2]
[404299234,1770046989382,500.0,0.00013273,2]
[404299235,1770046989702,500.0,0.00013273,2]
[404299236,1770046989760,1000.0,0.00013821,2]
[404299237,1770046989818,1000.0,0.00014368,2]
[404299238,1770046990159,501.7236834,0.00013699,2]
[404299239,1770046990590,500.76126937,0.00013699,2]
[404299240,1770046991374,521.75689976,0.00013273,2]
[404299241,1770046991412,501.7636643,0.00013273,2]
[404299242,1770046991529,500.0,0.00013699,2]
[404299243,1770046991586,259.98197506,0.00014247,2]
[404299244,1770046992100,501.08973292,0.00013699,2]
[404299245,1770046992292,1003.99891649,0.00014247,2]
[404299246,1770046992348,500.0,0.00013699,2]
[404299247,1770046992696,502.37098873,0.00013699,2]
[404299248,1770046992958,500.79097954,0.00013699,2]
[404299249,1770046993816,500.0,0.00013273,2]
[404299250,1770046993894,1000.0,0.00013821,2]
[404299251,1770046993935,1500.0,0.00014368,2]
[404299252,1770046993991,2000.0,0.00014916,2]
[404299253,1770046994703,1000.0,0.00013821,2]
[404299254,1770046994752,500.0,0.00013273,2]
[404299255,1770046994832,1500.0,0.00014368,2]
[404299256,1770046994866,2000.0,0.00014916,2]
[404299257,1770046994997,500.75464569,0.00013699,2]
[404299258,1770046996280,502.08741466,0.00013699,2]
[404299259,1770046996749,500.0,0.00013699,2]
[404299260,1770046996809,500.0,0.00014247,2]
[404299261,1770046996958,-2187.62315187,0.00015464,2]
[404299262,1770046996982,-1420.76646587,0.00016438,2]
[404299263,1770046997121,505.05141793,0.00013273,2]
[404299264,1770046997178,500.0,0.00013273,2]
[404299265,1770046997230,1000.0,0.00013821,2]
[404299266,1770046997285,1000.0,0.00014368,2]
[404299267,1770046997375,500.0,0.00013273,2]
[404299268,1770046997419,493.54362473,0.00013821,2]
[404299269,1770046997444,260.5441786,0.00013821,2]
[404299270,1770046997591,501.78355213,0.00013273,2]
[404299271,1770046998456,504.37145005,0.00013699,2]
[404299272,1770046998486,500.35669441,0.00013699,2]
[404299273,1770046998657,300.0,0.00013673,2]
[404299274,1770046998940,-191.6884179,0.00014221,2]
[404299275,1770046999800,501.10016724,0.00013699,2]
[404299276,1770047001335,502.22385389,0.00013273,2]
[404299277,1770047001545,-310.95791625,0.00014221,2]
[404299278,1770047003059,-100.23764433,0.00014221,2]
[404299279,1770047003083,-154.46235567,0.00016438,2]
[404299280,1770047005842,-690.26614684,0.00016438,2]
[404299281,1770047007368,-287.99750527,0.00016438,2]
[404299283,1770047043995,589.67619271,0.00013699,2]
[404299284,1770047048250,500.32107765,0.00013699,2]
[404299285,1770047048361,501.88940514,0.00013273,2]
[404299286,1770047048842,500.0,0.00013699,2]
[404299287,1770047049202,500.0,0.00013699,2]
[404299288,1770047049462,500.0,0.00013273,2]
[404299289,1770047049578,1000.0,0.00013821,2]
[404299290,1770047049811,502.92395427,0.00013273,2]
[404299291,1770047050407,503.02470899,0.00013273,2]
[404299292,1770047052205,500.0,0.00013273,2]
[404299293,1770047052269,504.16252433,0.00013821,2]
[404299294,1770047052307,1000.0,0.00013821,2]
[404299295,1770047052392,500.0,0.00013273,2]
[404299296,1770047053030,500.0,0.00013699,2]
[404299297,1770047053066,496.98252351,0.00013273,2]
[404299298,1770047054644,500.0,0.00013273,2]
[404299299,1770047054698,398.80575951,0.00013821,2]
[404299300,1770047054729,612.8470447,0.00013821,2]
[404299301,1770047055383,186.04355821,0.00013273,2]
[404299302,1770047056100,500.0,0.00013273,2]
[404299303,1770047056151,1003.08289833,0.00013821,2]
[404299304,1770047056639,299.98313854,0.00013699,2]
[404299305,1770047057880,500.0,0.00013273,2]
[404299306,1770047057936,717.31565869,0.00013821,2]
[404299307,1770047087161,225.64649951,0.00038926,120]
[404299308,1770047103503,501.6260743,0.00013699,2]
[404299309,1770047103593,502.95124717,0.00013699,2]
[404299310,1770047103687,261.11192516,0.00013273,2]
[404299311,1770047106407,622.48247302,0.00013699,2]
[404299312,1770047106546,500.43497571,0.00013699,2]
[404299313,1770047106910,500.0,0.00013273,2]
[404299314,1770047106945,1000.0,0.00013821,2]
[404299315,1770047107683,500.75141296,0.00013699,2]
[404299316,1770047109443,500.37355407,0.00013699,2]
[404299317,1770047110013,500.0,0.00013273,2]
[404299318,1770047110370,500.0,0.00013699,2]
[404299319,1770047110432,500.75583682,0.00013699,2]
[404299320,1770047110498,313.02539715,0.00013699,2]
[404299321,1770047110811,500.5953155,0.00013699,2]
[404299322,1770047141087,-629.93934409,0.00014247,2]
[404299323,1770047145337,500.0,0.000275,120]
[404299324,1770047165696,152.71023469,0.00013273,2]
[404299325,1770047166625,502.62478498,0.00013699,2]
[404299326,1770047167735,503.69117838,0.00013273,2]
[404299327,1770047169209,373.86723401,0.00013699,2]
[404299328,1770047170719,503.44585803,0.00013699,2]
[404299329,1770047170753,500.0,0.00013273,2]
[404299330,1770047171633,641.07454406,0.00014,2]
[404299331,1770047174994,500.0,0.00013699,2]
[404299332,1770047175358,500.0,0.00013273,2]
[404299333,1770047175408,1107.84141348,0.00013821,2]
[404299334,1770047224458,588.02707483,0.00013699,2]
[404299335,1770047224488,502.58834141,0.00013699,2]
[404299336,1770047224646,500.0,0.00013273,2]
[404299337,1770047224688,174.54782333,0.00013699,2]
[404299338,1770047231526,1811.46654975,0.00014,2]
[404299339,1770047243088,-474.36755429,0.00014247,2]
[404299340,1770047250254,-28.21143662,0.00014247,2]
[404299341,1770047250274,-504.32067354,0.00014247,2]
[404299342,1770047250294,-165.9474586,0.00014368,2]
[404299343,1770047250776,2546.57841029,0.00014,2]
[404299344,1770047252086,-399.95457705,0.00014,2]
[404299345,1770047254096,-2053.46701266,0.00014,2]
[404299346,1770047254122,-334.0525414,0.00014368,2]
[404299347,1770047254149,-164.69070455,0.00016438,2]
[404299348,1770047254172,-150.0,0.00023375,2]
[404299349,1770047254193,-179.74165614,0.00023909,5]
[404299350,1770047254214,-101.22499638,0.00025204,2]
[404299351,1770047297925,9652.0,0.00038926,30]
[404299352,1770047349146,-820.4753189,0.00024952,2]
[404299353,1770047357097,-2233.30682263,0.00024952,2]
[404299354,1770047373076,-1946.21785847,0.00024952,2]
[404299355,1770047373097,-150.0,0.00025079,2]
[404299356,1770047373118,-215.67545631,0.0002572,2]
[404299357,1770047373141,-862.70182525,0.0002572,2]
[404299358,1770047373163,-300.0,0.00026097,2]
[404299359,1770047373188,-5046.27445331,0.00026098,2]
[404299360,1770047374095,-75521.38625949,0.00026098,2]
[404299361,1770047374116,-437.70895467,0.00027074,2]
[404299362,1770047374137,-177.0,0.00027079,2]
[404299363,1770047374158,-1866.50528939,0.00027389,10]
[404299364,1770047388072,1138.13,0.0002495,3]
[404299405,1770047432551,-300.0,0.00027398,2]
[404299407,1770047432561,-0.23,0.00027399,2]
[404299430,1770047432795,-499.77,0.00027399,2]
[404299432,1770047432805,-500.0,0.00027399,2]
[404299434,1770047432815,-500.0,0.00027399,2]
[404299436,1770047432824,-500.0,0.00027399,2]
[404299438,1770047432834,-500.0,0.00027399,2]
[404299440,1770047432844,-500.0,0.00027399,2]
[404299442,1770047432853,-500.0,0.00027399,2]
[404299444,1770047432862,-293.85433807,0.00027399,2]
[404299446,1770047432871,-500.0,0.00027399,2]
[404299448,1770047432881,-583.9345302,0.00027399,2]
[404299450,1770047432890,-500.0,0.00027399,2]
[404299452,1770047432900,-500.0,0.00027399,2]
[404299454,1770047432910,-500.0,0.00027399,2]
[404299456,1770047432919,-500.0,0.00027399,2]
[404299458,1770047432928,-231.37565892,0.00027399,2]
[404299460,1770047432938,-500.0,0.00027399,2]
[404299462,1770047432947,-598.42873479,0.00027399,2]
[404299464,1770047432958,-500.0,0.00027399,2]
[404299466,1770047432968,-500.0,0.00027399,2]
[404299467,1770047432977,-500.0,0.00027399,2]
[404299469,1770047432987,-500.0,0.00027399,2]
[404299471,1770047432997,-500.0,0.00027399,2]
[404299473,1770047433006,-500.0,0.00027399,2]
[404299475,1770047433016,-500.0,0.00027399,2]
[404299477,1770047433025,-500.0,0.00027399,2]
[404299479,1770047433036,-500.0,0.00027399,2]
[404299481,1770047433045,-500.0,0.00027399,2]
[404299483,1770047433055,-500.0,0.00027399,2]
[404299485,1770047433065,-500.0,0.00027399,2]
[404299487,1770047433075,-500.0,0.00027399,2]
[404299489,1770047433084,-593.96209061,0.00027399,2]
[404299491,1770047433094,-513.49263638,0.00027399,2]
[404299493,1770047433104,-500.0,0.00027399,2]
[404299495,1770047433114,-6946.65021729,0.00027403,2]
[404299497,1770047433123,-500.0,0.00027501,2]
[404299499,1770047433133,-541.86189117,0.00027502,2]
[404299500,1770047433143,-567.87849535,0.00027502,2]
[404299503,1770047433154,-163.42786647,0.00027502,2]
[404299504,1770047433163,-235.76092057,0.00027502,2]
[404299506,1770047433174,-379.81580339,0.00027502,2]
[404299509,1770047433184,-2085.28,0.00027503,2]
[404299510,1770047433194,-2085.28,0.00027503,2]
[404299512,1770047433205,-2085.28,0.00027503,2]
[404299514,1770047433215,-2085.28,0.00027503,2]
[404299516,1770047433224,-2085.28,0.00027503,2]
[404299518,1770047433234,-500.0,0.00027503,2]
[404299520,1770047433243,-500.0,0.00027503,2]
[404299522,1770047433253,-2007.52468306,0.00027503,2]
[404299524,1770047433263,-395.432396,0.00027503,31]
[404299526,1770047433273,-500.0,0.00027588,2]
[404299528,1770047433287,-2085.28,0.00027589,2]
[404299530,1770047433296,-2085.28,0.00027589,2]
[404299532,1770047433306,-182.72385014,0.00027681,2]
[404299534,1770047433316,-500.0,0.0002778,2]
[404299536,1770047433327,-500.0,0.0002778,2]
[404299538,1770047433338,-1000.0,0.0002778,2]
[404299540,1770047433350,-500.0,0.0002778,2]
[404299542,1770047433360,-1000.0,0.0002778,2]
[404299544,1770047433370,-500.0,0.0002778,2]
[404299546,1770047433380,-1000.0,0.0002778,2]
[404299548,1770047433390,-500.0,0.0002778,2]
[404299550,1770047433400,-1000.0,0.0002778,2]
[404299552,1770047433409,-500.0,0.0002778,2]
[404299553,1770047433419,-1000.0,0.0002778,2]
[404299555,1770047433428,-1000.0,0.0002778,2]
[404299557,1770047433438,-500.0,0.0002778,2]
[404299559,1770047433447,-500.0,0.0002778,2]
[404299561,1770047433458,-1000.0,0.0002778,2]
[404299563,1770047433467,-500.0,0.0002778,2]
[404299565,1770047433477,-1000.0,0.0002778,2]
[404299567,1770047433487,-499.92009903,0.0002778,2]
[404299569,1770047433497,-500.0,0.0002778,2]
[404299572,1770047433506,-1000.0,0.0002778,2]
[404299573,1770047433516,-500.0,0.0002778,2]
[404299575,1770047433526,-212.41337558,0.0002778,2]
[404299577,1770047433538,-500.0,0.0002778,2]
[404299579,1770047433548,-500.0,0.0002778,2]
[404299581,1770047433558,-500.0,0.0002778,2]
[404299584,1770047433568,-500.0,0.0002778,2]
[404299587,1770047433587,-500.0,0.0002778,2]
[404299589,1770047433603,-500.0,0.0002778,2]
[404299591,1770047433617,-500.0,0.0002778,2]
[404299594,1770047433631,-500.0,0.0002778,2]
[404299596,1770047433642,-250.0,0.0002778,2]
[404299598,1770047433655,-250.0,0.0002778,2]
[404299601,1770047433667,-250.0,0.0002778,2]
[404299603,1770047433680,-250.0,0.0002778,2]
[404299605,1770047433694,-250.0,0.0002778,2]
[404299608,1770047433711,-250.0,0.0002778,2]
[404299610,1770047433724,-250.0,0.0002778,2]
[404299613,1770047433738,-250.0,0.0002778,2]
[404299615,1770047433752,-250.0,0.0002778,2]
[404299618,1770047433766,-250.0,0.0002778,2]
[404299620,1770047433778,-250.0,0.0002778,2]
[404299623,1770047433794,-6195.39845307,0.00027787,2]
[404299625,1770047433807,-451.48524783,0.00027787,2]
[404299627,1770047433819,-500.0,0.00027796,2]
[404299630,1770047433833,-22649.4131222,0.00027797,2]
[404299632,1770047433846,-265.5703424,0.00027902,2]
[404299634,1770047433858,-151.0,0.00027909,7]
[404299636,1770047433871,-10000.0,0.00027909,2]
[404299638,1770047433881,-2085.28,0.00027932,2]
[404299641,1770047433893,-2085.28,0.00028391,2]
[404299643,1770047433904,-182.72385014,0.00028791,2]
[404299645,1770047433916,-204.0,0.00029079,2]
[404299647,1770047433930,-2204.2778621,0.00029477,2]
[404299648,1770047433943,-961.0674424,0.00029477,2]
[404299649,1770047433955,-304.0,0.00029516,2]
[404299650,1770047433968,-420.0,0.00029608,2]
[404299651,1770047433981,-500.0,0.00029711,2]
[404299652,1770047433994,-202.41865959,0.00029711,2]
[404299653,1770047434008,-500.0,0.00029711,2]
[404299654,1770047434020,-201.86824577,0.00029711,2]
[404299655,1770047434031,-150.0,0.00029711,2]
[404299656,1770047434043,-500.0,0.00029711,2]
[404299657,1770047434055,-500.0,0.00029711,2]
[404299658,1770047434068,-500.0,0.00029711,2]
[404299659,1770047434083,-500.0,0.00029711,2]
[404299660,1770047434096,-500.0,0.00029711,2]
[404299661,1770047434108,-150.0,0.00029711,2]
[404299662,1770047434119,-500.0,0.00029711,2]
[404299663,1770047434131,-500.0,0.00029711,2]
[404299664,1770047434144,-150.0,0.00029711,2]
[404299665,1770047434156,-150.0,0.00029711,2]
[404299666,1770047434168,-150.0,0.00029711,2]
[404299667,1770047434179,-150.0,0.00029711,2]
[404299668,1770047434190,-150.0,0.00029711,2]
[404299669,1770047434201,-150.0,0.00029711,2]
[404299670,1770047434214,-500.0,0.00029711,2]
[404299671,1770047434226,-150.4025982,0.00029711,2]
[404299672,1770047434239,-500.0,0.00029798,2]
[404299674,1770047434250,-500.0,0.00029848,2]
[404299676,1770047434262,-500.0,0.00029848,2]
[404299679,1770047434273,-501.07590603,0.00029848,2]
[404299681,1770047434286,-505.74013917,0.00029848,2]
[404299683,1770047434296,-500.0,0.00029848,2]
[404299685,1770047434308,-500.0,0.00029848,2]
[404299687,1770047434319,-500.0,0.00029848,2]
[404299689,1770047434330,-500.0,0.00029848,2]
[404299691,1770047434341,-500.0,0.00029848,2]
[404299694,1770047434352,-150.0,0.00029848,2]
[404299696,1770047434364,-150.0,0.00029848,2]
[404299698,1770047434374,-150.0,0.00029848,2]
[404299700,1770047434386,-218.34852113,0.00029848,2]
[404299702,1770047434397,-150.0,0.00029848,2]
[404299704,1770047434408,-500.0,0.00029848,2]
[404299707,1770047434419,-494.14,0.00029889,2]
[404299708,1770047434429,-285.86527505,0.00029889,2]
[404299710,1770047434441,-182.72385014,0.000299,2]
[404299711,1770047434451,-500.0,0.00029985,2]
[404299712,1770047434462,-500.0,0.00029985,2]
[404299713,1770047434474,-500.0,0.00029985,2]
[404299714,1770047434485,-201.03981442,0.00029985,2]
[404299715,1770047434495,-610.02395534,0.00029985,2]
[404299716,1770047434506,-500.0,0.00029985,2]
[404299717,1770047434517,-500.0,0.00029985,2]
[404299718,1770047434616,-204.01177301,0.00029985,2]
[404299719,1770047434629,-292.45970376,0.00029985,2]
[404299720,1770047434639,-194.65116397,0.00029985,2]
[404299721,1770047434649,-500.0,0.00029985,2]
[404299722,1770047434658,-6195.39845307,0.00029989,2]
[404299723,1770047434667,-451.48524783,0.00029989,2]
[404299724,1770047434677,-2085.28,0.00029989,2]
[404299725,1770047434686,-190.734053,0.00029989,7]
[404299726,1770047434696,-500.0,0.00029989,2]
[404299727,1770047434705,-500.0,0.00029989,2]
[404299728,1770047434714,-376.66953889,0.0002999,7]
[404299729,1770047434723,-43367.7891715,0.0002999,2]
[404299730,1770047434733,-3160.39673481,0.0002999,2]
[404299731,1770047434742,-500.0,0.00029998,2]
[404299732,1770047434751,-500.0,0.00029998,2]
[404299733,1770047434760,-2085.28,0.00029999,2]
[404299734,1770047434769,-2085.28,0.00029999,2]
[404299735,1770047434778,-2085.28,0.00029999,2]
[404299736,1770047434789,-2085.28,0.00029999,2]
[404299737,1770047434799,-2085.28,0.00029999,2]
[404299738,1770047434809,-2085.28,0.00029999,2]
[404299739,1770047434818,-2085.28,0.00029999,2]
[404299740,1770047434827,-2085.28,0.00029999,2]
[404299741,1770047434836,-2085.28,0.00029999,2]
[404299742,1770047434845,-2085.28,0.00029999,2]
[404299743,1770047434854,-2085.28,0.00029999,2]
[404299744,1770047434863,-2085.28,0.00029999,2]
[404299745,1770047434873,-2085.28,0.00029999,2]
[404299746,1770047434882,-2085.50031643,0.00029999,2]
[404299747,1770047434891,-171.00101918,0.00029999,2]
[404299748,1770047434900,-290797.87509236,0.0003,10]
[404299749,1770047434909,-308.13,0.0003,14]
[404299750,1770047434919,-1041.66666667,0.0003,10]
[404299751,1770047434928,-200.0,0.0003,30]
[404299752,1770047434937,-837.66985282,0.0003,2]
[404299753,1770047434947,-3600.0,0.0003,15]
[404299754,1770047434956,-2000.0,0.0003,7]
[404299755,1770047434965,-717.33,0.0003,2]
[404299756,1770047434975,-717.33,0.0003,2]
[404299757,1770047434984,-717.33,0.0003,2]
[404299758,1770047434993,-717.33,0.0003,2]
[404299759,1770047435002,-717.33,0.0003,2]
[404299760,1770047435011,-717.33,0.0003,2]
[404299761,1770047435021,-717.33,0.0003,2]
[404299762,1770047435030,-717.33,0.0003,2]
[404299763,1770047435041,-717.33,0.0003,2]
[404299764,1770047435050,-717.33,0.0003,2]
[404299765,1770047435060,-717.33,0.0003,2]
[404299766,1770047435069,-717.33,0.0003,2]
[404299767,1770047435078,-717.33,0.0003,2]
[404299768,1770047435087,-717.33,0.0003,2]
[404299769,1770047435096,-717.33,0.0003,2]
[404299770,1770047435106,-717.33,0.0003,2]
[404299771,1770047435115,-1090.79,0.0003,2]
[404299772,1770047435124,-500.0,0.00030122,2]
[404299773,1770047435133,-500.0,0.00030122,2]
[404299774,1770047435142,-500.0,0.00030122,2]
[404299775,1770047435151,-500.0,0.00030122,2]
[404299776,1770047435160,-500.0,0.00030122,2]
[404299777,1770047435169,-300.0,0.00030122,2]
[404299778,1770047435179,-470.82635095,0.00030259,2]
[404299779,1770047435188,-500.0,0.00030259,2]
[404299780,1770047435199,-500.0,0.00030259,2]
[404299781,1770047435209,-500.0,0.00030259,2]
[404299782,1770047435219,-500.0,0.00030259,2]
[404299783,1770047435228,-180.69213513,0.00030358,2]
[404299784,1770047435238,-500.0,0.00030396,2]
[404299785,1770047435247,-500.0,0.00030396,2]
[404299786,1770047435257,-500.0,0.00030396,2]
[404299787,1770047435266,-500.0,0.00030396,2]
[404299788,1770047435277,-3849.105612,0.00030401,2]
[404299789,1770047435288,-500.0,0.00030533,2]
[404299790,1770047435298,-190.39487701,0.00030533,2]
[404299791,1770047435307,-500.0,0.00030533,2]
[404299792,1770047435316,-500.0,0.00030533,2]
[404299793,1770047435326,-728.03445116,0.00030589,2]
[404299794,1770047435336,-304.27252849,0.00030608,7]
[404299795,1770047435345,-500.0,0.0003067,2]
[404299796,1770047435355,-500.0,0.0003067,2]
[404299797,1770047435364,-500.0,0.0003067,2]
[404299798,1770047435374,-500.0,0.00030807,2]
[404299799,1770047435383,-500.0,0.00030807,2]
[404299800,1770047435392,-500.0,0.00030807,2]
[404299801,1770047435402,-500.0,0.00030944,2]
[404299802,1770047435411,-500.0,0.00030944,2]
[404299803,1770047435421,-500.0,0.00030944,2]
[404299804,1770047435430,-306.62609247,0.0003099,2]
[404299805,1770047435439,-231.0,0.00031079,2]
[404299806,1770047435449,-457.49361309,0.00031081,2]
[404299807,1770047435458,-500.0,0.00031081,2]
[404299808,1770047435468,-634.15117705,0.00031081,2]
[404299809,1770047435477,-500.0,0.00031218,2]
[404299810,1770047435486,-500.0,0.00031355,2]
[404299811,1770047435495,-11588.618403,0.00031578,60]
[404299812,1770047435509,-3849.105612,0.00031629,2]
[404299813,1770047435518,-7216.292424,0.00031706,60]
[404299814,1770047435528,-230.92111537,0.00031718,2]
[404299815,1770047435539,-172.078,0.00031919,30]
[404299816,1770047435548,-6195.39845307,0.0003199,2]
[404299817,1770047435557,-451.48524783,0.0003199,2]
[404299818,1770047435567,-587.0,0.00031997,2]
[404299819,1770047435576,-201.02453116,0.00032,2]
[404299820,1770047435586,-2751.54891049,0.00032,2]
[404299821,1770047435595,-500.0,0.0003216,2]
[404299822,1770047435605,-310.0,0.00032257,7]
[404299823,1770047435614,-763.0,0.00032267,2]
[404299824,1770047435624,-561.0,0.00032455,2]
[404299825,1770047435634,-3849.105612,0.00032858,2]
[404299826,1770047435643,-5794.309202,0.0003305,60]
[404299827,1770047435653,-258.0,0.00033079,120]
[404299828,1770047435663,-228.0,0.00033091,2]
[404299829,1770047435672,-3608.14621,0.00033094,60]
[404299830,1770047435681,-3876.23,0.000332,14]
[404299831,1770047435691,-228.0,0.000332,7]
[404299832,1770047435699,-227.0,0.00033588,7]
[404299833,1770047435709,-227.0,0.00033739,2]
[404299834,1770047435719,-1548.1360006,0.00033787,2]
[404299835,1770047435728,-483.74584832,0.0003395,2]
[404299836,1770047435738,-251.0,0.00034034,2]
[404299837,1770047435747,-3849.105612,0.00034086,2]
[404299838,1770047435757,-227.0,0.00034161,2]
[404299839,1770047435766,-239.0,0.00034351,7]
[404299840,1770047435775,-514.0429376,0.00034429,2]
[404299841,1770047435786,-345.4358337,0.00034638,2]
[404299842,1770047435795,-402.48814035,0.000347,4]
[404299843,1770047435805,-251.0,0.00034835,120]
[404299844,1770047435815,-5185.33267907,0.000349,15]
[404299845,1770047435826,-24781.5938123,0.0003499,2]